bitfinex/quotes_SOLUSD_20250829
["timestamp","ask_amount","ask_price","bid_price","bid_amount"]
[1756483522607,20.0,203.57,203.47,0.49147294]
[1756483522915,20.0,203.54,203.5,22.66864945]
[1756483523087,20.0,203.54,203.44,52.49154541]
[1756483523409,20.0,203.56,203.51,22.66864945]
[1756483524111,20.0,203.51,203.46,22.66864945]
[1756483524481,20.0,203.51,203.44,52.0]
[1756483524678,20.0,203.51,203.47,22.66864945]
[1756483524917,20.0,203.53,203.49,22.66864945]
[1756483525084,20.0,203.53,203.5,22.66864945]
[1756483525703,20.0,203.57,203.52,22.66864945]
[1756483525902,0.7,203.56,203.5,22.66864945]
[1756483526106,20.0,203.55,203.46,0.4914971]
[1756483526313,20.0,203.55,203.51,22.66864945]
[1756483526605,20.0,203.57,203.54,22.66864945]
[1756483526815,24.91069427,203.64,203.56,22.66864945]
[1756483527111,20.0,203.6,203.57,22.66864945]
[1756483527405,20.0,203.62,203.52,26.71]
[1756483527608,0.7,203.66,203.61,22.66864945]
[1756483527806,22.66864945,203.62,203.53,0.49132805]
[1756483528018,22.66864945,203.62,203.46,4.91483813]
[1756483528019,20.0,203.6,203.52,0.14216157]
[1756483528193,24.91161337,203.6,203.56,22.66864945]
[1756483528395,20.0,203.56,203.43,0.71]
[1756483528597,20.0,203.54,203.5,22.66864945]
[1756483528912,20.0,203.56,203.51,22.66864945]
[1756483529122,43.36864945,203.56,203.5,22.66864945]
[1756483529296,20.7,203.56,203.51,22.66864945]
[1756483529496,20.0,203.56,203.45,26.71]
[1756483529808,42.66864945,203.56,203.46,0.4914971]
[1756483530118,20.0,203.56,203.51,22.66864945]
[1756483530323,20.0,203.61,203.55,22.66864945]
[1756483530491,49.03473773,203.94,203.52,0.71]
[1756483530492,20.0,203.58,203.52,0.4913522]
[1756483530816,20.0,203.55,203.48,0.49144879]
[1756483531017,20.0,203.55,203.47,0.49147294]
[1756483531194,42.66864945,203.55,203.45,0.49152125]
[1756483531396,20.0,203.57,203.54,22.66864945]
[1756483531598,20.0,203.59,203.55,22.66864945]
[1756483531908,20.0,203.61,203.58,22.66864945]
[1756483532116,20.0,203.65,203.6,22.66864945]
[1756483532292,20.0,203.63,203.6,22.66864945]
[1756483532596,20.69,203.63,203.54,0.14216157]
[1756483532914,20.0,203.63,203.61,22.66864945]
[1756483533116,20.0,203.63,203.5,48.66864945]
[1756483533117,20.0,203.52,203.37,0.72]
[1756483533297,20.0,203.48,203.47,22.66864945]
[1756483533617,20.0,203.48,203.44,22.66864945]
[1756483533816,42.66864945,203.5,203.44,22.66864945]
[1756483534118,42.66864945,203.5,203.37,0.72]
[1756483534119,20.0,203.46,203.37,0.72]
[1756483534312,20.0,203.46,203.41,22.66864945]
[1756483534703,20.0,203.5,203.45,22.66864945]
[1756483534916,20.0,203.49,203.42,0.14216157]
[1756483535115,20.0,203.49,203.47,0.03]
[1756483535304,0.69,203.48,203.47,0.03]
[1756483535630,20.0,203.53,203.47,22.69864945]
[1756483535804,20.0,203.5,203.47,0.03]
[1756483536002,42.66864945,203.53,203.47,22.69864945]
[1756483536210,42.66864945,203.5,203.47,0.03]
[1756483536506,20.0,203.55,203.49,22.66864945]
[1756483536705,42.66864945,203.51,203.47,0.03]
[1756483537025,22.66864945,203.48,203.47,0.03]
[1756483537417,23.35864945,203.48,203.47,0.03]
[1756483538129,23.84988097,203.48,203.47,0.03]
[1756483538307,52.70648448,203.48,203.47,0.03]
[1756483538739,54.27313736,203.48,203.47,0.03]
[1756483538914,49.35864945,203.48,203.47,0.03]
[1756483539515,26.70569088,203.48,203.47,0.03]
[1756483539824,26.70521596,203.48,203.47,0.03]
[1756483540123,20.0,203.54,203.47,22.69864945]
[1756483540439,0.69,203.58,203.51,22.66864945]
[1756483540739,0.69,203.58,203.47,0.03]
[1756483540740,0.06,203.59,203.54,22.66864945]
[1756483540942,0.06,203.59,203.51,0.14216157]
[1756483541234,0.06,203.59,203.58,22.66864945]
[1756483541435,0.06,203.59,203.53,0.14216157]
[1756483541643,0.06,203.59,203.58,22.66864945]
[1756483541815,0.06,203.59,203.56,22.66864945]
[1756483542520,0.06,203.59,203.53,17.19648208]
[1756483542740,20.0,203.57,203.53,4.91328059]
[1756483542925,20.0,203.55,203.53,4.91328059]
[1756483543238,20.0,203.53,203.48,27.58313736]
[1756483543423,20.0,203.5,203.48,4.91448791]
[1756483543735,20.0,203.5,203.48,27.58313736]
[1756483543945,20.0,203.5,203.48,4.91448791]
[1756483544112,20.0,203.56,203.49,22.66864945]
[1756483544309,20.0,203.56,203.51,22.66864945]
[1756483544513,20.0,203.49,203.47,0.03]
[1756483544730,22.66864945,203.48,203.47,0.03]
[1756483544933,0.69,203.48,203.47,0.03]
[1756483545141,20.0,203.49,203.47,0.03]
[1756483546414,30.91282503,203.55,203.47,0.03]
[1756483546415,20.0,203.52,203.48,22.66864945]
[1756483546614,20.0,203.54,203.51,22.66864945]
[1756483546819,20.0,203.56,203.51,22.66864945]
[1756483547120,20.69,203.56,203.51,22.66864945]
[1756483547325,42.66864945,203.56,203.47,0.03]
[1756483547527,20.0,203.5,203.47,0.03]
[1756483547711,20.0,203.5,203.47,22.69864945]
[1756483547917,20.0,203.48,203.47,0.03]
[1756483548323,43.35864945,203.48,203.47,0.03]
[1756483548735,48.27313736,203.48,203.47,0.03]
[1756483549227,20.0,203.38,203.32,1.24183553]
[1756483549432,20.0,203.36,203.33,22.66864945]
[1756483549627,20.0,203.34,203.32,0.03]
[1756483550069,20.0,203.34,203.33,22.66864945]
[1756483550349,20.0,203.38,203.33,22.66864945]
[1756483550646,20.0,203.38,203.34,22.66864945]
[1756483550821,20.0,203.36,203.35,0.72]
[1756483551020,20.0,203.41,203.35,22.66864945]
[1756483551221,20.0,203.41,203.38,22.66864945]
[1756483551449,20.0,203.41,203.39,22.66864945]
[1756483551744,20.0,203.37,203.33,0.72]
[1756483552132,20.0,203.37,203.36,22.66864945]
[1756483552448,20.0,203.37,203.35,22.66864945]
[1756483552620,20.0,203.37,203.32,0.03]
[1756483552621,0.69,203.36,203.32,0.03]
[1756483552824,20.0,203.25,203.22,22.66864945]
[1756483553041,20.0,203.29,203.24,22.66864945]
[1756483553246,20.0,203.29,203.27,22.66864945]
[1756483553422,20.0,203.29,203.28,22.66864945]
[1756483553621,20.0,203.31,203.23,0.49205333]
[1756483554050,20.0,203.28,203.21,17.22353253]
[1756483554230,20.0,203.28,203.26,22.66864945]
[1756483554423,20.0,203.28,203.27,22.66864945]
[1756483554630,20.0,203.32,203.27,22.66864945]
[1756483554843,20.0,203.32,203.31,22.66864945]
[1756483555051,20.0,203.29,203.26,17.21932044]
[1756483555232,20.0,203.32,203.28,22.66864945]
[1756483555438,20.0,203.32,203.31,22.66864945]
[1756483555647,20.0,203.34,203.26,17.85346272]
[1756483555846,20.0,203.32,203.31,22.66864945]
[1756483556150,20.0,203.36,203.31,22.66864945]
[1756483556357,20.0,203.36,203.34,22.66864945]
[1756483556531,20.0,203.36,203.35,22.66864945]
[1756483556731,20.0,203.4,203.35,22.66864945]
[1756483556952,20.69,203.4,203.32,17.21424355]
[1756483557122,20.0,203.4,203.33,0.14216157]
[1756483557768,20.0,203.37,203.32,4.9183553]
[1756483557969,20.0,203.4,203.36,22.66864945]
[1756483558136,20.0,203.4,203.39,22.66864945]
[1756483558342,20.0,203.32,203.24,4.92029128]
[1756483558537,20.0,203.32,203.31,22.66864945]
[1756483558737,20.0,203.32,203.3,22.66864945]
[1756483559138,20.0,203.32,203.24,17.22051768]
[1756483559345,20.0,203.3,203.29,22.66864945]
[1756483559537,20.0,203.3,203.24,17.22101948]
[1756483559743,20.0,203.28,203.27,22.66864945]
[1756483559945,20.0,203.28,203.24,17.22101948]
[1756483560257,3.36404275,203.27,203.23,4.95053338]
[1756483560563,20.0,203.24,203.23,0.03]
[1756483560744,20.0,203.26,203.23,22.69864945]
[1756483561056,20.0,203.24,203.23,0.03]
[1756483561262,23.36943132,203.24,203.23,0.03]
[1756483561464,20.0,203.24,203.23,22.69864945]
[1756483561667,23.36446589,203.24,203.23,0.03]
[1756483561845,23.36446589,203.24,203.23,22.69864945]
[1756483562043,20.0,203.27,203.23,22.69864945]
[1756483562257,22.66864945,203.41,203.28,17.35979242]
[1756483562439,22.66864945,203.32,203.25,0.14216157]
[1756483562760,26.72487147,203.31,203.25,22.66864945]
[1756483563056,0.69,203.36,203.3,22.66864945]
[1756483563236,22.66864945,203.32,203.24,4.92029128]
[1756483563437,3.3658296,203.31,203.24,17.22101948]
[1756483563657,0.69,203.41,203.28,0.14216157]
[1756483563838,22.66864945,203.37,203.31,22.66864945]
[1756483564045,22.66864945,203.34,203.24,17.22101948]
[1756483564241,3.36568452,203.33,203.32,22.66864945]
[1756483564438,4.05568452,203.36,203.31,22.66864945]
[1756483564639,4.05568452,203.35,203.26,17.21926293]
[1756483564876,22.66864945,203.32,203.26,22.66864945]
[1756483565104,3.36568452,203.31,203.27,22.66864945]
[1756483565400,26.49123152,203.39,203.24,17.22101948]
[1756483565401,0.69,203.37,203.3,22.66864945]
[1756483565684,1.18123152,203.45,203.31,0.14216157]
[1756483565889,3.36857028,203.44,203.42,22.66864945]
[1756483566251,0.69,203.47,203.43,4.91550611]
[1756483566576,0.06,203.59,203.49,26.0]
[1756483566782,0.06,203.62,203.58,22.66864945]
[1756483567075,1e-08,203.64,203.61,48.66864945]
[1756483567392,1e-08,203.71,203.67,0.14216157]
[1756483567563,7.53352963,203.77,203.75,2.56158123]
[1756483568154,2.60840648,203.77,203.76,36.89717848]
[1756483568492,2.60840648,203.77,203.76,23.30158447]
[1756483568651,16.88,204.01,203.75,7.46945721]
[1756483568652,0.69,203.84,203.78,22.66864945]
[1756483568852,22.66864945,203.94,203.75,3.05237877]
[1756483569058,0.69,203.79,203.75,2.56158123]
[1756483569276,22.66864945,203.76,203.75,1.84158123]
[1756483569477,39.59559401,203.77,203.6,0.72]
[1756483569678,22.66864945,203.69,203.63,22.66864945]
[1756483569868,22.66864945,203.67,203.61,22.66864945]
[1756483570075,22.66864945,203.65,203.55,0.72]
[1756483570275,0.49123152,203.71,203.6,22.66864945]
[1756483570586,10.05940195,203.7,203.61,1.21113501]
[1756483570789,10.05940195,203.7,203.59,0.49118326]
[1756483570972,10.05940195,203.7,203.57,1.21123151]
[1756483571158,0.49123152,203.69,203.53,0.49132805]
[1756483571357,26.0,203.65,203.53,0.72]
[1756483571559,13.59559401,203.63,203.46,0.72]
[1756483571763,0.82123152,203.62,203.51,22.66864945]
[1756483571969,22.66864945,203.57,203.49,0.72]
[1756483572173,22.66864945,203.55,203.49,22.66864945]
[1756483572660,0.82123152,203.63,203.53,22.66864945]
[1756483572881,26.0,203.67,203.57,22.66864945]
[1756483573074,22.66864945,203.65,203.55,0.72]
[1756483573278,0.49123152,203.68,203.61,22.66864945]
[1756483573488,0.49123152,203.69,203.55,1.21127978]
[1756483573670,0.49123152,203.69,203.54,0.49130392]
[1756483573671,22.66864945,203.62,203.54,0.49130392]
[1756483573873,22.66864945,203.63,203.57,22.66864945]
[1756483574075,0.33,203.65,203.52,22.66864945]
[1756483574267,5.24040876,203.65,203.55,22.66864945]
[1756483574475,22.66864945,203.6,203.51,0.72]
[1756483574664,22.66864945,203.54,203.45,0.72]
[1756483574864,22.66864945,203.54,203.47,22.66864945]
[1756483575084,22.66864945,203.48,203.4,0.72]
[1756483575272,22.66864945,203.47,203.41,22.66864945]
[1756483575585,26.33,203.53,203.4,22.66864945]
[1756483575762,22.66864945,203.46,203.36,54.6]
[1756483575963,22.66864945,203.46,203.4,22.66864945]
[1756483576165,22.66864945,203.46,203.36,54.6]
[1756483576166,22.66864945,203.45,203.36,0.72]
[1756483576392,4.91568938,203.44,203.36,22.66864945]
[1756483576594,22.66864945,203.4,203.32,0.72]
[1756483576889,22.66864945,203.41,203.34,22.66864945]
[1756483577261,5.7369209,203.44,203.33,22.66864945]
[1756483577463,22.66864945,203.38,203.3,0.72]
[1756483577666,18.02555636,203.44,203.3,22.66864945]
[1756483577860,22.66864945,203.38,203.31,22.66864945]
[1756483578182,18.02555636,203.44,203.23,30.95046962]
[1756483578183,22.66864945,203.32,203.23,0.03]
[1756483578367,22.66864945,203.26,203.23,0.03]
[1756483578569,17.70632177,203.31,203.23,0.03]
[1756483578878,22.66864945,203.26,203.23,0.03]
[1756483579078,17.70632177,203.31,203.18,0.03]
[1756483579079,22.66864945,203.24,203.18,0.03]
[1756483579414,22.66864945,203.21,203.18,0.03]
[1756483579564,13.59559401,203.28,203.18,0.03]
[1756483579565,0.27,203.29,203.18,0.03]
[1756483579890,22.66864945,203.24,203.18,0.03]
[1756483580190,22.66864945,203.19,203.18,0.03]
[1756483580388,27.59015149,203.19,203.18,0.03]
[1756483580564,4.92150204,203.19,203.18,0.03]
[1756483580768,0.49123152,203.23,203.18,0.03]
[1756483580769,4.92118825,203.21,203.18,0.03]
[1756483580965,22.66864945,203.19,203.18,0.03]
[1756483581766,5.41187855,203.23,203.18,0.03]
[1756483582098,22.66864945,203.2,203.18,0.03]
[1756483582397,4.92101766,203.21,203.18,0.03]
[1756483582563,22.66864945,203.19,203.18,0.03]
[1756483583167,20.0,203.35,203.18,0.03]
[1756483583391,20.0,203.35,203.21,22.66864945]
[1756483583392,22.66864945,203.27,203.21,22.66864945]
[1756483583697,22.66864945,203.3,203.23,22.66864945]
[1756483583900,0.76123152,203.39,203.26,22.66864945]
[1756483584200,22.66864945,203.35,203.29,22.66864945]
[1756483584564,0.49123152,203.41,203.26,0.14216157]
[1756483584807,53.54,203.46,203.34,22.66864945]
[1756483584982,22.66864945,203.35,203.18,4.95160269]
[1756483585302,22.66864945,203.22,203.19,0.72]
[1756483585489,0.59123152,203.3,203.2,0.72]
[1756483585691,22.66864945,203.23,203.18,0.03]
[1756483585889,0.59123152,203.32,203.22,22.66864945]
[1756483586199,22.66864945,203.33,203.26,22.66864945]
[1756483586400,22.66864945,203.33,203.27,22.66864945]
[1756483586699,22.66864945,203.37,203.3,22.66864945]
[1756483586900,22.66864945,203.36,203.28,0.72]
[1756483587081,22.66864945,203.35,203.28,0.72]
[1756483587285,22.66864945,203.35,203.29,22.66864945]
[1756483587599,5.6768479,203.44,203.3,22.66864945]
[1756483587804,22.66864945,203.4,203.34,22.66864945]
[1756483588003,22.66864945,203.43,203.36,22.66864945]
[1756483588300,13.59559401,203.48,203.35,0.72]
[1756483588502,22.66864945,203.38,203.32,22.66864945]
[1756483588698,22.66864945,203.43,203.37,22.66864945]
[1756483588915,22.66864945,203.41,203.33,0.72]
[1756483589082,0.59123152,203.4,203.28,23.38864945]
[1756483589284,13.59559401,203.41,203.28,0.72]
[1756483589495,22.66864945,203.3,203.24,0.72]
[1756483589705,22.66864945,203.29,203.24,0.72]
[1756483589901,0.59123152,203.37,203.19,23.38864945]
[1756483589902,22.66864945,203.25,203.19,23.38864945]
[1756483590104,22.66864945,203.25,203.19,0.72]
[1756483590413,0.59123152,203.34,203.24,22.66864945]
[1756483590708,0.17,203.44,203.28,22.66864945]
[1756483591013,22.66864945,203.36,203.29,22.66864945]
[1756483591184,22.66864945,203.36,203.3,22.66864945]
[1756483591506,22.66864945,203.37,203.28,0.71]
[1756483591681,22.66864945,203.36,203.3,22.66864945]
[1756483591885,22.66864945,203.39,203.33,22.66864945]
[1756483592079,22.66864945,203.41,203.35,22.66864945]
[1756483592303,0.59123152,203.52,203.4,22.66864945]
[1756483592478,22.66864945,203.53,203.41,1.34377948]
[1756483592691,22.66864945,203.5,203.44,22.66864945]
[1756483592889,22.66864945,203.45,203.39,0.49166625]
[1756483593086,22.66864945,203.42,203.37,0.71]
[1756483593288,0.17,203.5,203.33,0.71]
[1756483593289,22.66864945,203.38,203.33,0.71]
[1756483593585,0.59123152,203.46,203.37,22.66864945]
[1756483593911,22.66864945,203.38,203.3,5.62868337]
[1756483594091,0.59123152,203.49,203.37,22.66864945]
[1756483594293,22.66864945,203.47,203.41,22.66864945]
[1756483594491,22.66864945,203.45,203.38,0.71]
[1756483594683,22.66864945,203.42,203.38,0.71]
[1756483594882,22.66864945,203.41,203.35,22.66864945]
[1756483595094,22.66864945,203.43,203.37,22.66864945]
[1756483595296,22.66864945,203.44,203.37,0.71]
[1756483595495,22.66864945,203.44,203.38,22.66864945]
[1756483595892,0.59123152,203.52,203.43,22.66864945]
[1756483596096,22.66864945,203.5,203.43,22.66864945]
[1756483596502,0.59123152,203.54,203.45,22.66864945]
[1756483596914,22.66864945,203.51,203.45,22.66864945]
[1756483597103,3.83856799,203.55,203.5,22.66864945]
[1756483597290,22.66864945,203.51,203.46,0.4914971]
[1756483597490,3.83856799,203.55,203.43,22.66864945]
[1756483597491,22.66864945,203.49,203.43,22.66864945]
[1756483597708,22.66864945,203.46,203.42,0.71]
[1756483598000,22.66864945,203.46,203.35,0.63392454]
[1756483598001,22.66864945,203.43,203.36,4.91718366]
[1756483598209,0.59123152,203.49,203.39,22.66864945]
[1756483598425,22.66864945,203.48,203.41,22.66864945]
[1756483598628,22.66864945,203.43,203.34,0.49178715]
[1756483598798,0.59123152,203.47,203.38,22.66864945]
[1756483598993,5.08330785,203.53,203.36,22.66864945]
[1756483598994,22.66864945,203.42,203.36,22.66864945]
[1756483599199,22.66864945,203.42,203.35,0.71]
[1756483599200,22.66864945,203.44,203.38,22.66864945]
[1756483599412,22.66864945,203.45,203.39,22.66864945]
[1756483599715,22.66864945,203.41,203.35,23.37864945]
[1756483600019,22.66864945,203.36,203.3,0.03]
[1756483600316,39.59559401,203.44,203.3,27.61739963]
[1756483600624,0.59123152,203.43,203.39,22.66864945]
[1756483600822,22.66864945,203.45,203.4,0.71]
[1756483601120,0.59123152,203.51,203.4,0.71]
[1756483601305,22.66864945,203.47,203.4,22.66864945]
[1756483601503,22.66864945,203.47,203.41,22.66864945]
[1756483601701,0.59123152,203.51,203.42,22.66864945]
[1756483601889,22.66864945,203.46,203.41,4.91617914]
[1756483602096,22.66864945,203.51,203.45,22.66864945]
[1756483602300,22.66864945,203.49,203.42,0.71]
[1756483602489,22.66864945,203.46,203.41,4.91617914]
[1756483602712,0.59123152,203.53,203.44,22.66864945]
[1756483603021,22.66864945,203.52,203.46,22.66864945]
[1756483603320,22.66864945,203.52,203.42,0.71]
[1756483603321,3.83856799,203.55,203.47,0.71]
[1756483603500,3.83856799,203.55,203.52,22.66864945]
[1756483603717,3.83856799,203.55,203.54,22.66864945]
[1756483603935,0.23,203.79,203.58,17.33442013]
[1756483604096,0.23,203.79,203.62,0.14216157]
[1756483604296,22.66864945,203.76,203.7,22.66864945]
[1756483604517,22.66864945,203.74,203.67,0.71]
[1756483604711,22.66864945,203.7,203.64,22.66864945]
[1756483604926,22.66864945,203.7,203.63,22.66864945]
[1756483605095,22.66864945,203.64,203.58,27.58072332]
[1756483605292,22.66864945,203.69,203.63,22.66864945]
[1756483605510,22.66864945,203.7,203.64,22.66864945]
[1756483605717,22.66864945,203.67,203.61,22.66864945]
[1756483605921,4.90896895,203.71,203.61,22.66864945]
[1756483606100,0.59123152,203.7,203.6,22.66864945]
[1756483606420,22.66864945,203.63,203.55,52.0]
[1756483606624,22.66864945,203.62,203.56,22.66864945]
[1756483606993,13.59559401,203.68,203.55,22.66864945]
[1756483607325,13.59559401,203.68,203.54,0.71]
[1756483607326,0.59123152,203.68,203.61,22.66864945]
[1756483607501,22.66864945,203.67,203.61,22.66864945]
[1756483607700,22.66864945,203.68,203.62,22.66864945]
[1756483608022,27.5795172,203.63,203.48,4.91448791]
[1756483608194,22.66864945,203.57,203.51,22.66864945]
[1756483608395,0.59123152,203.56,203.48,0.71]
[1756483608627,22.66864945,203.54,203.48,0.71]
[1756483608798,22.66864945,203.49,203.43,0.71]
[1756483609496,22.66864945,203.48,203.43,0.71]
[1756483609807,22.66864945,203.49,203.43,0.71]
[1756483610037,4.91329107,203.53,203.43,28.29424565]
[1756483610233,22.66864945,203.5,203.44,22.66864945]
[1756483610835,0.59123152,203.58,203.48,22.66864945]
[1756483611030,22.66864945,203.57,203.5,22.66864945]
[1756483611333,22.66864945,203.58,203.52,22.66864945]
[1756483611529,0.59123152,203.61,203.52,22.66864945]
[1756483611832,0.59123152,203.61,203.54,22.66864945]
[1756483612044,0.23,203.65,203.47,0.14216157]
[1756483612045,22.66864945,203.62,203.56,22.66864945]
[1756483612248,0.59123152,203.65,203.56,22.66864945]
[1756483612430,5.50069688,203.69,203.58,22.66864945]
[1756483612754,22.66864945,203.64,203.58,22.66864945]
[1756483612958,5.50073522,203.69,203.53,0.49132805]
[1756483612959,22.66864945,203.59,203.53,0.49132805]
[1756483613158,22.66864945,203.58,203.52,0.71]
[1756483613361,22.66864945,203.56,203.52,5.62352154]
[1756483613650,0.59123152,203.65,203.53,0.71]
[1756483613846,22.66864945,203.57,203.53,0.71]
[1756483614149,22.66864945,203.56,203.53,0.71]
[1756483614353,22.66864945,203.54,203.49,0.71]
[1756483614528,22.66864945,203.51,203.44,30.91545418]
[1756483614730,22.66864945,203.53,203.47,22.66864945]
[1756483614955,22.66864945,203.53,203.45,0.71]
[1756483614956,22.66864945,203.52,203.46,22.66864945]
[1756483615449,0.59123152,203.59,203.49,22.66864945]
[1756483615638,22.66864945,203.56,203.5,23.40864945]
[1756483616057,0.59123152,203.63,203.53,22.66864945]
[1756483616236,22.66864945,203.55,203.51,0.71]
[1756483616441,0.59123152,203.61,203.5,22.69864945]
[1756483616771,22.66864945,203.57,203.51,22.66864945]
[1756483616957,22.66864945,203.57,203.51,27.58236976]
[1756483617133,0.59123152,203.61,203.53,22.66864945]
[1756483617333,22.66864945,203.61,203.55,22.66864945]
[1756483617840,22.66864945,203.6,203.55,22.66864945]
[1756483618236,22.66864945,203.61,203.56,5.62255649]
[1756483618439,0.59123152,203.66,203.59,22.66864945]
[1756483618667,22.66864945,203.65,203.59,22.66864945]
[1756483618862,0.06,203.67,203.62,22.66864945]
[1756483619164,22.66864945,203.65,203.6,0.71]
[1756483619362,0.06,203.67,203.56,4.91255649]
[1756483619363,0.06,203.67,203.62,22.66864945]
[1756483619565,22.66864945,203.64,203.61,0.71]
[1756483619738,0.06,203.67,203.56,53.58120594]
[1756483619739,22.66864945,203.62,203.56,53.58120594]
[1756483619939,13.59559401,203.56,203.5,0.03]
[1756483620159,0.59123152,203.55,203.5,0.03]
[1756483620339,4.9130392,203.54,203.5,0.03]
[1756483620536,0.59123152,203.53,203.5,0.03]
[1756483620742,5.50354669,203.57,203.5,0.03]
[1756483621047,0.59123152,203.57,203.5,0.03]
[1756483621242,22.66864945,203.51,203.5,0.03]
[1756483622135,22.66864945,203.55,203.5,0.71]
[1756483622457,22.66864945,203.56,203.51,0.68]
[1756483622660,22.66864945,203.6,203.54,22.66864945]
[1756483622965,22.66864945,203.63,203.57,22.66864945]
[1756483623262,22.66864945,203.63,203.55,0.68]
[1756483623263,22.66864945,203.65,203.59,22.66864945]
[1756483623432,22.66864945,203.66,203.6,22.66864945]
[1756483623637,0.06,203.67,203.64,22.66864945]
[1756483623937,0.06,203.67,203.66,22.66864945]
[1756483624149,0.06,203.67,203.66,23.34864945]
[1756483624337,5.02749594,203.79,203.73,0.14216157]
[1756483624544,5.02749594,203.79,203.78,22.66864945]
[1756483624545,4.30749594,203.79,203.78,22.66864945]
[1756483624756,10.26616141,203.88,203.78,23.34864945]
[1756483624937,10.26616141,203.88,203.85,22.66864945]
[1756483625146,22.66864945,203.86,203.63,4.91086775]
[1756483625355,56.15319597,203.85,203.64,0.68]
[1756483625542,22.66864945,203.72,203.65,22.66864945]
[1756483625869,0.61337651,203.79,203.71,22.66864945]
[1756483626049,22.66864945,203.77,203.7,22.66864945]
[1756483626250,0.61313582,203.87,203.76,22.66864945]
[1756483626456,22.66864945,203.77,203.71,0.68]
[1756483626657,22.66864945,203.76,203.69,22.66864945]
[1756483626856,1.32328623,203.82,203.69,22.66864945]
[1756483627060,22.66864945,203.75,203.69,52.0]
[1756483627266,0.61316589,203.86,203.73,26.0]
[1756483627476,22.66864945,203.87,203.8,22.66864945]
[1756483627643,22.66864945,203.87,203.79,0.68]
[1756483627842,22.66864945,203.85,203.79,23.34864945]
[1756483628072,0.2,203.88,203.84,22.66864945]
[1756483628280,0.2,203.88,203.85,0.68]
[1756483628447,22.66864945,203.86,203.76,4.90751875]
[1756483628647,22.66864945,203.86,203.73,0.14446]
[1756483628648,0.2,203.88,203.84,22.66864945]
[1756483628953,0.2,203.88,203.83,22.66864945]
[1756483629156,0.2,203.88,203.82,22.66864945]
[1756483629362,0.2,203.88,203.84,0.68]
[1756483629550,0.2,203.88,203.87,22.66864945]
[1756483629872,22.86864945,203.88,203.79,0.68]
[1756483630042,0.2,203.88,203.82,22.66864945]
[1756483630246,0.2,203.88,203.87,22.66864945]
[1756483630950,0.2,203.88,203.87,23.34864945]
[1756483631153,0.2,203.88,203.87,75.49081102]
[1756483631558,0.2,203.88,203.87,75.34864945]
[1756483631758,0.2,203.88,203.87,0.68]
[1756483631959,0.2,203.88,203.87,23.34864945]
[1756483632261,0.2,203.88,203.87,28.25373602]
[1756483632462,0.2,203.88,203.87,28.39589759]
[1756483632667,0.2,203.96,203.87,5.72724814]
[1756483632869,0.2,203.96,203.87,5.58508657]
[1756483633050,0.2,203.96,203.93,22.66864945]
[1756483633246,0.2,203.96,203.95,22.66864945]
[1756483633447,0.2,203.96,203.93,0.68]
[1756483633776,0.2,203.96,203.93,22.66864945]
[1756483634276,0.2,203.96,203.95,22.66864945]
[1756483634771,0.2,203.96,203.95,75.49081102]
[1756483634950,0.2,203.96,203.92,0.68]
[1756483635155,0.2,203.96,203.95,22.66864945]
[1756483635384,0.2,203.96,203.95,23.34864945]
[1756483635758,0.2,203.96,203.92,0.14382844]
[1756483636301,0.2,203.96,203.89,0.82392921]
[1756483636578,0.2,203.96,203.94,22.66864945]
[1756483636988,0.2,203.96,203.91,22.66864945]
[1756483637359,0.2,203.96,203.89,4.9045598]
[1756483637661,0.2,203.96,203.92,22.66864945]
[1756483637874,22.66864945,203.93,203.8,0.68]
[1756483638178,22.66864945,203.83,203.72,0.68]
[1756483638377,22.66864945,203.8,203.74,22.66864945]
[1756483638580,22.66864945,203.83,203.75,4.90797546]
[1756483638775,0.71,203.85,203.78,22.66864945]
[1756483638971,22.66864945,203.79,203.68,0.68]
[1756483639167,22.66864945,203.8,203.74,22.66864945]
[1756483639483,22.66864945,203.81,203.72,0.68]
[1756483639785,22.66864945,203.78,203.73,22.66864945]
[1756483640085,1.32322605,203.84,203.67,23.34864945]